fUSD/lending_fUSD_20240525
["ID","MTS","AMOUNT","RATE_DAILY","PERIOD"]
[327929894,1716663032766,-150.0,0.00014556,2]
[327929895,1716663032775,-150.0,0.00014556,2]
[327929896,1716663032785,-150.0,0.00014556,2]
[327929897,1716663032794,-7973.91,0.00014556,2]
[327929898,1716663032803,-2768.48,0.00014557,2]
[327929899,1716663032812,-925.11,0.00014557,2]
[327929900,1716663032821,-355.03,0.0001484,2]
[327929901,1716663032831,-12310.57,0.00015024,2]
[327929902,1716663032840,-518.38,0.00015082,2]
[327929905,1716663032850,-1335.21,0.0001514,2]
[327929908,1716663032859,-795.48059306,0.00015183,2]
[327929911,1716663032869,-403.66394371,0.00015183,2]
[327929913,1716663032878,-329.53898838,0.00015183,2]
[327929915,1716663032888,-257.07684942,0.00015183,2]
[327929918,1716663032897,-1043.57255206,0.00015184,2]
[327929920,1716663032907,-25288.46,0.00015185,2]
[327929922,1716663032916,-800.1369087,0.00015185,2]
[327929924,1716663032928,-1240.78981057,0.00015185,2]
[327929926,1716663032939,-565.32334577,0.00015185,2]
[327929929,1716663032951,-673.68468,0.00015185,2]
[327929932,1716663032976,-537.98302556,0.00015185,2]
[327929935,1716663032988,-7458.1222294,0.00015185,2]
[327929937,1716663032997,-59739.40151038,0.00015233,2]
[327929939,1716663033009,-3371.08989126,0.00015233,2]
[327929942,1716663033032,-4801.53009967,0.00015233,2]
[327929945,1716663033043,-1361.45276237,0.00015233,2]
[327929947,1716663033055,-7559.40709401,0.00015233,2]
[327929949,1716663033066,-35461.81295496,0.00015233,2]
[327929951,1716663033077,-273.70345416,0.00015233,2]
[327929953,1716663033086,-316.36682997,0.00015243,2]
[327929955,1716663033097,-621.77146932,0.00015243,2]
[327929957,1716663033108,-733.42170071,0.00015243,2]
[327929959,1716663033117,-150.5561553,0.00015254,2]
[327929962,1716663033128,-96.6238447,0.00015254,2]
[327929964,1716663033138,-230.4,0.00015274,2]
[327929966,1716663033147,-123.2261553,0.00015552,2]
[327929983,1716663038285,-714.662132,0.00013601,2]
[327929985,1716663038298,-210.25846634,0.00013601,2]
[327929986,1716663038308,-515.4838447,0.00015552,2]
[327929987,1716663038318,-638.71,0.00015595,2]
[327929988,1716663038327,-638.71,0.00015637,2]
[327929989,1716663038336,-638.71,0.0001568,2]
[327929990,1716663038347,-638.71,0.00015723,2]
[327929991,1716663038357,-109.38299812,0.00015756,2]
[327929992,1716663038369,-660.21700188,0.00015756,2]
[327929993,1716663038378,-262.18033153,0.00015765,2]
[327929994,1716663038390,-376.52966847,0.00015765,2]
[327929995,1716663038400,-638.71,0.00015808,2]
[327929996,1716663038409,-638.71,0.00015851,2]
[327929997,1716663038419,-638.71,0.00015893,2]
[327929998,1716663038428,-638.71,0.00015936,2]
[327929999,1716663038438,-638.71,0.00015979,2]
[327930000,1716663038447,-210.0,0.00016012,2]
[327930001,1716663038457,-638.71,0.00016021,2]
[327930002,1716663038467,-638.71,0.00016064,2]
[327930003,1716663038476,-638.71,0.00016107,2]
[327930004,1716663038485,-638.71,0.00016149,2]
[327930005,1716663038494,-371.78033153,0.00016192,2]
[327930006,1716663038551,-266.92966847,0.00016192,2]
[327930007,1716663038561,-1674.6362473,0.00016198,2]
[327930008,1716663038572,-972.3437527,0.00016198,2]
[327930009,1716663038582,-86.98487123,0.00016202,2]
[327930010,1716663038593,-500.0,0.00016202,2]
[327930011,1716663038604,-398.16355164,0.00016202,2]
[327930012,1716663038616,-1661.83157713,0.00016202,2]
[327930014,1716663038629,-593.66451139,0.00016206,2]
[327930016,1716663038640,-2053.31548861,0.00016206,2]
[327930018,1716663038650,-317.81441045,0.00016211,2]
[327930021,1716663038744,-308.66866659,0.00016211,2]
[327930022,1716663038759,-2020.49692296,0.00016211,2]
[327930023,1716663038771,-2646.98,0.00016215,2]
[327930024,1716663038780,-2646.98,0.00016219,2]
[327930026,1716663038789,-2646.98,0.00016224,2]
[327930028,1716663038798,-2646.98,0.00016228,2]
[327930030,1716663038808,-2646.98,0.00016232,2]
[327930032,1716663038817,-638.71,0.00016235,2]
[327930034,1716663038827,-2646.98,0.00016236,2]
[327930036,1716663038836,-2646.98,0.00016241,2]
[327930038,1716663038845,-2646.98,0.00016245,2]
[327930040,1716663038855,-2646.98,0.00016249,2]
[327930042,1716663038865,-2646.98,0.00016253,2]
[327930044,1716663038874,-2646.98,0.00016258,2]
[327930046,1716663038883,-2646.98,0.00016262,2]
[327930048,1716663038893,-2646.98,0.00016266,2]
[327930050,1716663038902,-20.05307715,0.00016271,2]
[327930053,1716663038914,-2626.92692285,0.00016271,2]
[327930055,1716663038924,-2646.98,0.00016275,2]
[327930057,1716663038933,-638.71,0.00016277,2]
[327930059,1716663038942,-2646.98,0.00016279,2]
[327930061,1716663038952,-638.71,0.0001632,2]
[327930062,1716663038962,-638.71,0.00016363,2]
[327930065,1716663038972,-3393.0,0.00016438,2]
[327930066,1716663038981,-173.78307714,0.00016563,2]
[327930069,1716663038993,-4.47692286,0.00016563,2]
[327930071,1716663039002,-341.70088974,0.00016684,2]
[327930073,1716663039015,-1022.73923696,0.00016684,2]
[327930075,1716663039027,-335.62931817,0.00016684,2]
[327930077,1716663039039,-1297.32055513,0.00016684,2]
[327930079,1716663039049,-4784.0,0.000167,2]
[327930082,1716663039060,-499.99,0.00016721,2]
[327930084,1716663039069,-355.03,0.00017103,2]
[327930086,1716663039080,-1652.77822217,0.00017159,2]
[327930088,1716663039090,-326.70070233,0.00017159,2]
[327930090,1716663039101,-230.4,0.00017183,2]
[327930092,1716663039110,-1344.62818652,0.00017249,2]
[327930094,1716663039121,-204.9066759,0.00017257,2]
[327930096,1716663039131,-155.96728218,0.00017257,2]
[327930098,1716663039140,-279.01846308,0.00017257,2]
[327930100,1716663039150,-21837.05991269,0.00017259,2]
[327930118,1716663041328,-1398.31602695,0.00017259,2]
[327930120,1716663041489,-6723.4,0.00017259,2]
[327930121,1716663041509,-2242.11160093,0.00017259,2]
[327930122,1716663041530,-1382.19034372,0.00017259,2]
[327930134,1716663043593,-448.00432387,0.00017259,2]
[327930135,1716663043609,-1006.005,0.00017259,2]
[327930136,1716663043625,-3268.0669238,0.00017259,2]
[327930137,1716663043642,-233757.94868955,0.00017259,2]
[327930138,1716663043655,-151.830362,0.00017259,2]
[327930139,1716663043669,-151.0,0.00017259,2]
[327930140,1716663043682,-151.0,0.00017259,2]
[327930141,1716663043695,-151.0,0.00017259,2]
[327930142,1716663043708,-151.0,0.00017259,2]
[327930143,1716663043721,-798.0,0.000174,2]
[327930144,1716663043734,-769.6,0.00017507,2]
[327930145,1716663043747,-3634.45,0.00017936,2]
[327930146,1716663043761,-230.4,0.00019093,2]
[327930147,1716663043786,-769.6,0.00019258,2]
[327930148,1716663043826,-355.03,0.00019367,2]
[327930149,1716663043888,-2997.39,0.00019424,2]
[327930151,1716663044013,-1652.77822217,0.00019719,2]
[327930153,1716663044107,-1050.0,0.00021,2]
[327930156,1716663044231,-230.4,0.00021002,2]
[327930158,1716663044305,-769.6,0.00021008,2]
[327930160,1716663044397,-1000.0,0.0002119,2]
[327930161,1716663044418,-3308.35237155,0.00021324,2]
[327930162,1716663044431,-355.03,0.00021631,2]
[327930164,1716663044444,-326.70070232,0.00021719,2]
[327930165,1716663044457,-164.38,0.00021918,2]
[327930166,1716663044470,-250.0,0.00021918,2]
[327930167,1716663044483,-170.25,0.00021918,2]
[327930168,1716663044496,-207.0,0.00021918,2]
[327930169,1716663044509,-152.98616253,0.00022061,2]
[327930170,1716663044522,-1652.77822217,0.0002228,2]
[327930171,1716663044534,-152.98616253,0.00022521,2]
[327930172,1716663044547,-230.4,0.00022911,2]
[327930173,1716663044560,-152.98616253,0.00022984,2]
[327930174,1716663044573,-1100.0,0.00023,2]
[327930175,1716663044586,-152.98616253,0.00023278,2]
[327930176,1716663044600,-355.03,0.00023895,2]
[327930177,1716663044612,-153.32579596,0.0002433,2]
[327930178,1716663044626,-331.65549182,0.00024476,2]
[327930179,1716663044639,-150.0,0.00024824,2]
[327930180,1716663044653,-1652.77822217,0.0002484,2]
[327930181,1716663044666,-151.8,0.00024888,2]
[327930182,1716663044680,-151.0,0.00024898,7]
[327930183,1716663044692,-291.721738,0.00024898,7]
[327930184,1716663044703,-155.695115,0.00024898,7]
[327930185,1716663044712,-151.0,0.00024898,7]
[327930186,1716663044721,-151.0,0.00024898,7]
[327930187,1716663044730,-151.0,0.00024898,7]
[327930188,1716663044740,-151.0,0.00024898,7]
[327930189,1716663044749,-151.0,0.00024898,7]
[327930190,1716663044759,-151.0,0.00024898,7]
[327930191,1716663044768,-151.0,0.00024898,7]
[327930192,1716663044780,-151.0,0.00024898,7]
[327930193,1716663044790,-151.0,0.00024898,7]
[327930194,1716663044801,-151.0,0.00024898,7]
[327930195,1716663045091,-151.0,0.00024898,7]
[327930196,1716663045124,-151.0,0.00024898,7]
[327930197,1716663045139,-151.0,0.00024898,7]
[327930198,1716663045149,-151.0,0.00024898,7]
[327930199,1716663045159,-64394.06377765,0.00024898,2]
[327930200,1716663045169,-64394.06377758,0.00024898,2]
[327930201,1716663045179,-64394.06377758,0.00024898,2]
[327930202,1716663045188,-64394.06377758,0.00024898,2]
[327930203,1716663045198,-64394.06377758,0.00024898,2]
[327930204,1716663045207,-151.0,0.00024898,7]
[327930205,1716663045217,-151.0,0.00024898,7]
[327930206,1716663045227,-151.0,0.00024898,7]
[327930207,1716663045237,-151.0,0.00024898,7]
[327930208,1716663045246,-151.0,0.00024898,7]
[327930209,1716663045256,-151.0,0.00024898,7]
[327930210,1716663045266,-151.0,0.00024898,7]
[327930211,1716663045281,-151.0,0.00024898,7]
[327930212,1716663045291,-151.0,0.00024898,7]
[327930213,1716663045303,-729.521036,0.00024898,7]
[327930214,1716663045313,-151.0,0.00024898,7]
[327930215,1716663045322,-729.521036,0.00024898,7]
[327930216,1716663045332,-729.521036,0.00024898,7]
[327930217,1716663045342,-729.521036,0.00024898,7]
[327930218,1716663045357,-729.521036,0.00024898,7]
[327930219,1716663045368,-729.521036,0.00024898,7]
[327930220,1716663045378,-151.0,0.00024898,7]
[327930221,1716663045387,-151.0,0.00024898,7]
[327930222,1716663045397,-155.862812,0.00024898,7]
[327930223,1716663045407,-151.0,0.00024898,7]
[327930224,1716663045417,-151.0,0.00024898,7]
[327930225,1716663045426,-151.0,0.00024898,7]
[327930226,1716663045436,-151.0,0.00024898,7]
[327930227,1716663045447,-151.0,0.00024898,7]
[327930228,1716663045457,-151.0,0.00024898,7]
[327930229,1716663045466,-151.0,0.00024898,7]
[327930230,1716663045476,-151.0,0.00024898,7]
[327930231,1716663045485,-151.0,0.00024898,7]
[327930232,1716663045495,-151.0,0.00024898,7]
[327930233,1716663045504,-151.0,0.00024898,7]
[327930234,1716663045513,-151.0,0.00024898,7]
[327930235,1716663045524,-151.0,0.00024898,7]
[327930236,1716663045533,-151.0,0.00024898,7]
[327930237,1716663045541,-159.252439,0.00024898,7]
[327930238,1716663045551,-159.252439,0.00024898,7]
[327930239,1716663045561,-159.252439,0.00024898,7]
[327930240,1716663045570,-151.0,0.00024898,7]
[327930241,1716663045580,-151.0,0.00024898,7]
[327930242,1716663045589,-159.252439,0.00024898,7]
[327930243,1716663045599,-159.252439,0.00024898,7]
[327930244,1716663045608,-159.252439,0.00024898,7]
[327930245,1716663045618,-151.0,0.00024898,7]
[327930246,1716663045628,-151.0,0.00024898,7]
[327930247,1716663045637,-151.0,0.00024898,7]
[327930248,1716663045647,-151.0,0.00024898,7]
[327930249,1716663045656,-150.0,0.00024901,2]
[327930250,1716663045666,-70411.86786807,0.00024952,2]
[327930251,1716663045688,-49703.18569771,0.00024952,2]
[327930252,1716663045697,-151.0,0.00024952,7]
[327930253,1716663045707,-151.0,0.00024952,7]
[327930254,1716663045717,-205.714625,0.00024952,7]
[327930255,1716663045727,-151.0,0.00024952,7]
[327930256,1716663045736,-151.0,0.00024952,7]
[327930257,1716663045745,-151.0,0.00024952,7]
[327930258,1716663045754,-151.0,0.00024952,7]
[327930259,1716663045764,-436.181463,0.00024952,7]
[327930260,1716663045774,-436.181463,0.00024952,7]
[327930261,1716663045783,-151.0,0.00024952,7]
[327930262,1716663045792,-151.0,0.00024952,7]
[327930263,1716663045801,-151.0,0.00024952,7]
[327930264,1716663045811,-159.252439,0.00024952,7]
[327930265,1716663045821,-159.252439,0.00024952,7]
[327930266,1716663045830,-151.0,0.00024952,7]
[327930267,1716663045840,-151.0,0.00024952,7]
[327930268,1716663045850,-1150.0,0.00025,2]
[327930269,1716663045859,-215.13326472,0.00025,2]
[327930270,1716663045869,-155.0,0.00025,2]
[327930271,1716663045880,-224.3459268,0.00025,2]
[327930272,1716663045891,-930.88625861,0.00025,2]
[327930273,1716663045900,-150.0,0.00025242,2]
[327930274,1716663045910,-151.83882976,0.0002529,2]
[327930275,1716663045919,-150.0,0.00025316,2]
[327930276,1716663045929,-150.0,0.00025339,2]
[327930277,1716663045938,-150.0,0.00025345,2]
[327930278,1716663045947,-150.0,0.00025464,2]
[327930279,1716663045956,-186.01041922,0.00025612,2]
[327930280,1716663045965,-150.0,0.00025655,2]
[327930281,1716663045975,-150.0,0.00025699,2]
[327930282,1716663045985,-150.0,0.00025704,2]
[327930283,1716663045995,-150.0,0.00025709,2]
[327930284,1716663046005,-150.0,0.00025912,2]
[327930285,1716663046016,-64394.06377758,0.00026008,2]
[327930286,1716663046027,-150.0,0.00026058,2]
[327930287,1716663046036,-355.03,0.00026159,2]
[327930288,1716663046045,-150.0,0.0002618,2]
[327930289,1716663046055,-150.0,0.00026222,2]
[327930290,1716663046064,-153.32579596,0.00026222,2]
[327930291,1716663046073,-150.0,0.00026274,2]
[327930292,1716663046084,-326.70070232,0.0002628,2]
[327930293,1716663046093,-150.0,0.00026316,2]
[327930294,1716663046102,-150.0,0.00026384,2]
[327930295,1716663046112,-150.0,0.00026384,2]
[327930296,1716663046121,-150.0,0.00026384,2]
[327930297,1716663046130,-150.0,0.00026384,2]
[327930298,1716663046140,-150.0,0.00026384,2]
[327930299,1716663046150,-150.0,0.00026384,2]
[327930300,1716663046159,-150.0,0.00026384,2]
[327930301,1716663046170,-150.0,0.00026384,2]
[327930302,1716663046179,-150.0,0.00026384,2]
[327930303,1716663046189,-150.0,0.00026384,2]
[327930304,1716663046198,-150.0,0.00026384,2]
[327930305,1716663046208,-150.0,0.00026384,2]
[327930306,1716663046218,-150.0,0.00026384,2]
[327930307,1716663046228,-150.0,0.00026384,2]
[327930308,1716663046237,-204.53,0.000265,2]
[327930309,1716663046248,-160.21460742,0.00026509,2]
[327930310,1716663046259,-150.0,0.00026623,2]
[327930311,1716663046274,-150.0,0.00026646,2]
[327930312,1716663046284,-150.0,0.00026678,2]
[327930313,1716663046293,-172.90223474,0.00026698,2]
[327930314,1716663046304,-255.23544755,0.00026698,2]
[327930315,1716663046317,-1932.5687,0.000267,2]
[327930316,1716663046327,-150.0,0.00026704,2]
[327930317,1716663046336,-151.8,0.00026788,2]
[327930318,1716663046346,-183.50869794,0.00026798,2]
[327930319,1716663046356,-281.88330445,0.00026798,2]
[327930320,1716663046366,-318.10175994,0.00026798,2]
[327930321,1716663046375,-639.82332566,0.00026798,2]
[327930322,1716663046385,-155.0,0.00026798,2]
[327930323,1716663046395,-280.21533997,0.00026798,2]
[327930324,1716663046406,-1709.09955405,0.00026798,2]
[327930325,1716663046416,-286.95551788,0.00026798,2]
[327930326,1716663046425,-163.66855681,0.00026798,2]
[327930327,1716663046435,-325.27009318,0.00026798,2]
[327930328,1716663046445,-234.24959519,0.00026798,2]
[327930329,1716663046455,-190.14931315,0.00026798,2]
[327930330,1716663046465,-457.48757191,0.00026798,2]
[327930331,1716663046474,-210.42228446,0.00026798,2]
[327930332,1716663046484,-273.01392063,0.00026798,2]
[327930333,1716663046494,-168.67641696,0.00026798,2]
[327930334,1716663046504,-695.73947977,0.00026798,2]
[327930335,1716663046513,-6072.95838708,0.00026798,2]
[327930336,1716663046524,-168.98653766,0.00026798,2]
[327930337,1716663046533,-3011.83944086,0.00026798,2]
[327930338,1716663046542,-956.0368988,0.00026798,2]
[327930339,1716663046552,-426.53759319,0.00026798,2]
[327930340,1716663046561,-1032.37852384,0.00026798,2]
[327930341,1716663046571,-1530.08068188,0.00026798,2]
[327930342,1716663046580,-803.7740889,0.00026798,2]
[327930343,1716663046590,-237.91738848,0.00026798,2]
[327930344,1716663046599,-1105.85938254,0.00026798,2]
[327930345,1716663046609,-773.21956934,0.00026798,2]
[327930346,1716663046618,-212.64301334,0.00026798,2]
[327930347,1716663046628,-16037.96591989,0.00026798,2]
[327930348,1716663046637,-155.42860413,0.00026798,2]
[327930349,1716663046646,-159.57077881,0.00026798,2]
[327930350,1716663046656,-151.0,0.00026798,7]
[327930351,1716663046667,-151.0,0.00026798,7]
[327930352,1716663046676,-151.0,0.00026798,7]
[327930353,1716663046685,-151.0,0.00026798,7]
[327930354,1716663046695,-151.0,0.00026798,7]
[327930355,1716663046706,-151.0,0.00026798,7]
[327930356,1716663046716,-151.0,0.00026798,7]
[327930357,1716663046726,-224.870723,0.00026798,7]
[327930358,1716663046735,-151.0,0.00026798,7]
[327930359,1716663046745,-151.0,0.00026798,7]
[327930360,1716663046754,-151.0,0.00026798,7]
[327930361,1716663046764,-151.0,0.00026798,7]
[327930362,1716663046774,-151.0,0.00026798,7]
[327930363,1716663046784,-151.0,0.00026798,7]
[327930364,1716663046793,-151.0,0.00026798,7]
[327930365,1716663046803,-151.0,0.00026798,7]
[327930366,1716663046812,-151.0,0.00026798,7]
[327930367,1716663046821,-151.0,0.00026798,7]
[327930368,1716663046831,-729.521036,0.00026798,7]
[327930369,1716663046840,-729.521036,0.00026798,7]
[327930370,1716663046850,-151.0,0.00026798,7]
[327930371,1716663046859,-151.0,0.00026798,7]
[327930372,1716663046869,-151.0,0.00026798,7]
[327930373,1716663046878,-159.252439,0.00026798,7]
[327930374,1716663046887,-159.252439,0.00026798,7]
[327930375,1716663046897,-151.0,0.00026798,7]
[327930376,1716663046906,-274.64908023,0.00026799,2]
[327930377,1716663046916,-9884.77228886,0.00026799,2]
[327930378,1716663046926,-155.0,0.00026799,7]
[327930379,1716663046935,-151.0,0.00026799,7]
[327930380,1716663046945,-151.0,0.00026799,7]
[327930381,1716663046955,-151.0,0.00026799,7]
[327930382,1716663046964,-151.0,0.00026799,7]
[327930383,1716663046973,-151.0,0.00026799,7]
[327930384,1716663046983,-151.0,0.00026799,7]
[327930385,1716663046993,-151.0,0.00026799,7]
[327930386,1716663047002,-151.0,0.00026799,7]
[327930387,1716663047012,-151.0,0.00026799,7]
[327930388,1716663047023,-1740.4,0.00026819,2]
[327930389,1716663047032,-153.76513487,0.00026847,2]
[327930390,1716663047041,-150.0,0.00026871,2]
[327930391,1716663047050,-157.952326,0.00026902,7]
[327930392,1716663047059,-151.0,0.00026902,7]
[327930393,1716663047068,-151.0,0.00026902,7]
[327930394,1716663047078,-151.0,0.00026902,7]
[327930395,1716663047088,-436.181463,0.00026902,7]
[327930396,1716663047098,-436.181463,0.00026902,7]
[327930397,1716663047107,-490.44029,0.0002693,2]
[327930398,1716663047116,-152.98616253,0.00026956,2]
[327930400,1716663047127,-150.0,0.00026971,2]
[327930402,1716663047137,-200.0,0.00026979,2]
[327930405,1716663047148,-200.0,0.00026979,2]
[327930407,1716663047158,-1200.0,0.00027,2]
[327930408,1716663047168,-50000.0,0.00027,2]
[327930409,1716663047177,-151.0,0.00027,7]
[327930410,1716663047188,-244.301084,0.00027,7]
[327930411,1716663047198,-150.0,0.00027001,2]
[327930412,1716663047208,-500.0,0.00027006,2]
[327930413,1716663047220,-500.0,0.00027006,2]
[327930414,1716663047230,-700.0,0.00027006,2]
[327930415,1716663047239,-151.0,0.00027061,7]
[327930416,1716663047249,-151.0,0.00027061,7]
[327930417,1716663047259,-1000.0,0.00027061,2]
[327930418,1716663047269,-1000.0,0.00027061,2]
[327930419,1716663047283,-1000.0,0.00027061,2]
[327930420,1716663047292,-1000.0,0.00027061,2]
[327930421,1716663047301,-1000.0,0.00027061,2]
[327930422,1716663047312,-1000.0,0.00027061,2]
[327930423,1716663047321,-1000.0,0.00027061,2]
[327930424,1716663047331,-1000.0,0.00027061,2]
[327930425,1716663047340,-1000.0,0.00027061,2]
[327930426,1716663047352,-1000.0,0.00027061,2]
[327930427,1716663047361,-1000.0,0.00027061,2]
[327930428,1716663047371,-1000.0,0.00027061,2]
[327930429,1716663047380,-1000.0,0.00027061,2]
[327930430,1716663047390,-1000.0,0.00027061,2]
[327930431,1716663047399,-1000.0,0.00027061,2]
[327930432,1716663047408,-1000.0,0.00027061,2]
[327930433,1716663047418,-1000.0,0.00027061,2]
[327930434,1716663047427,-1000.0,0.00027061,2]
[327930435,1716663047437,-1000.0,0.00027061,2]
[327930436,1716663047447,-1000.0,0.00027061,2]
[327930437,1716663047457,-1000.0,0.00027061,2]
[327930438,1716663047467,-1000.0,0.00027061,2]
[327930439,1716663047477,-1000.0,0.00027061,2]
[327930440,1716663047487,-1000.0,0.00027061,2]
[327930441,1716663047498,-1000.0,0.00027061,2]
[327930442,1716663047507,-1000.0,0.00027061,2]
[327930443,1716663047517,-1000.0,0.00027061,2]
[327930444,1716663047529,-604.2966,0.00027061,2]
[327930445,1716663047538,-501.0,0.00027064,2]
[327930446,1716663047548,-158.533626,0.00027087,7]
[327930447,1716663047557,-151.0,0.00027087,7]
[327930448,1716663047567,-159.252439,0.00027087,7]
[327930449,1716663047576,-159.252439,0.00027087,7]
[327930450,1716663047585,-7500.0,0.00027087,2]
[327930451,1716663047595,-173.95959609,0.00027097,2]
[327930452,1716663047604,-4287.03113708,0.00027097,2]
[327930453,1716663047614,-150.0,0.000271,5]
[327930454,1716663047624,-150.0,0.00027161,2]
[327930455,1716663047633,-150.0,0.00027178,2]
[327930456,1716663047643,-150.0,0.00027179,2]
[327930457,1716663047652,-832.78366286,0.00027186,2]
[327930458,1716663047661,-151.0,0.00027186,7]
[327930459,1716663047670,-151.0,0.00027186,7]
[327930460,1716663047680,-151.0,0.00027186,7]
[327930461,1716663047689,-729.521036,0.00027186,7]
[327930462,1716663047699,-729.521036,0.00027186,7]
[327930463,1716663047708,-151.8,0.00027187,2]
[327930464,1716663047718,-151.8,0.00027187,2]
[327930465,1716663047727,-1344.62818652,0.00027187,2]
[327930466,1716663047736,-151.0,0.00027187,7]
[327930467,1716663047746,-279.3979368,0.00027187,2]
[327930468,1716663047755,-634.7634323,0.00027187,2]
[327930469,1716663047765,-404.3193693,0.00027187,2]
[327930470,1716663047776,-284.5962923,0.00027187,2]
[327930471,1716663047785,-1387.1572199,0.00027187,2]
[327930472,1716663047794,-7102.3511899,0.00027187,2]
[327930473,1716663047804,-151.0,0.00027187,7]
[327930474,1716663047814,-281.81285646,0.00027195,2]
[327930475,1716663047823,-1227.04758271,0.00027195,2]
[327930476,1716663047833,-607.56643044,0.00027195,2]
[327930477,1716663047842,-656.59256229,0.00027195,2]
[327930478,1716663047852,-155.22819832,0.00027195,2]
[327930479,1716663047862,-1239.99423481,0.00027195,2]
[327930480,1716663047872,-151.0,0.00027195,7]
[327930481,1716663047881,-151.0,0.00027195,7]
[327930482,1716663047891,-151.0,0.00027195,7]
[327930483,1716663047902,-151.0,0.00027195,7]
[327930484,1716663047914,-151.0,0.00027195,7]
[327930485,1716663047924,-151.0,0.00027195,7]
[327930486,1716663047935,-151.0,0.00027195,7]
[327930487,1716663047945,-151.0,0.00027195,7]
[327930488,1716663047955,-151.0,0.00027195,7]
[327930489,1716663047965,-269.03861094,0.00027196,2]
[327930490,1716663047974,-294605.54392087,0.00027197,2]
[327930491,1716663047989,-5919.86879322,0.00027197,2]
[327930492,1716663048000,-1914.17709488,0.00027197,2]
[327930493,1716663048070,-151.0,0.00026798,7]
[327930494,1716663048080,-319.0,0.00027187,2]
[327930495,1716663048091,-281.39448311,0.00027187,2]
[327930496,1716663048108,-1631.08611909,0.00027187,2]
[327930497,1716663048117,-65609.23388092,0.00027197,2]
[327930498,1716663048663,-1368.67,0.00017259,2]
[327930499,1716663048675,-1551.80709717,0.00017259,2]
[327930500,1716663048685,-151.0,0.00027187,7]
[327930501,1716663048695,-5008.94703579,0.00027197,2]
[327930502,1716663048707,-6749.4360685,0.00027197,2]
[327930503,1716663048718,-1339.09765074,0.00027197,2]
[327930504,1716663048755,-529.55322272,0.00024852,2]
[327930505,1716663048765,-1157.01907786,0.00027197,2]
[327930506,1716663048776,-2944.05486498,0.00027197,2]
[327930507,1716663308471,153.72,0.00013973,2]
[327930508,1716663420715,204.0,0.00031,120]
[327930512,1716664231714,-155.0,0.00017035,2]
[327930514,1716664231724,-181.63192,0.00017036,2]
[327930515,1716664231840,-265.49668512,0.00017036,2]
[327930516,1716664231850,-526.46889655,0.00017036,2]
[327930517,1716664231859,-165.29677643,0.00017038,2]
[327930518,1716664231870,-1003.38848444,0.00017138,2]
[327930519,1716664231884,-150.0,0.00017155,2]
[327930520,1716664231894,-1597.16383215,0.00017156,2]
[327930521,1716664231908,-893.88077685,0.00017156,2]
[327930522,1716664231922,-463.7839458,0.00017156,2]
[327930523,1716664231968,-406.05831774,0.00017156,2]
[327930526,1716664231980,-1300.08001397,0.00017156,2]
[327930528,1716664231992,-569.62382123,0.00017156,2]
[327930529,1716664232003,-599.72,0.00017156,2]
[327930545,1716664237674,-10288.07429226,0.00017156,2]
[327930546,1716664237683,-643.09300531,0.00017255,2]
[327930547,1716664237693,-306.48466096,0.00017258,2]
[327930548,1716664237703,-165.29677628,0.00017547,2]
[327930549,1716664237712,-499.99,0.00017808,2]
[327930550,1716664237721,-181.85,0.00017808,2]
[327930551,1716664237731,-165.29677628,0.00018055,2]
[327930552,1716664237740,-165.29677628,0.00018564,2]
[327930553,1716664237749,-165.29677628,0.00019072,2]
[327930554,1716664237763,-4417.99,0.00019339,2]